fUSD/lending_fUSD_20240414
["ID","MTS","AMOUNT","RATE_DAILY","PERIOD"]
[322586213,1713085839354,-320.7123654,0.000209,2]
[322586214,1713085839366,-844.1018298,0.000209,2]
[322586215,1713085839375,-187.69455529,0.000209,2]
[322586216,1713085839385,-152.63,0.0002099,2]
[322586217,1713085839394,-152.63,0.0002099,2]
[322586218,1713085839403,-164.17733306,0.00020998,2]
[322586219,1713085839413,-407.61661465,0.00020998,2]
[322586220,1713085839422,-3339.31430567,0.00020998,2]
[322586221,1713085839434,-185.78135859,0.00020998,2]
[322586222,1713085839486,-310.8781278,0.00020999,2]
[322586223,1713085839497,-2361.93347219,0.00020999,2]
[322586224,1713085839508,-513.16357943,0.00020999,2]
[322586225,1713085839519,-201.38728826,0.00020999,2]
[322586226,1713085839528,-1911786.13950718,0.00021,2]
[322586256,1713085840613,-269840.67253395,0.00021,2]
[322586266,1713085841166,-30214.91636413,0.00021,2]
[322586281,1713085843020,-431.39999991,0.000208,2]
[322586287,1713085846132,-207.24312696,0.000208,2]
[322586288,1713085846142,-1313.73024675,0.00020873,2]
[322586289,1713085846151,-1313.73024675,0.00020882,2]
[322586290,1713085846161,-173.1,0.0002099,3]
[322586291,1713085846170,-320291.25987099,0.00021,2]
[322586292,1713085846309,-233.51339806,0.00020989,2]
[322586293,1713085846319,-4013.73660194,0.00021,2]
[322586295,1713086006512,500.0,0.00029998,60]
[322586297,1713086148972,181.23,0.00029848,120]
[322586298,1713086299553,150.0,0.00017797,2]
[322586299,1713086299582,150.0,0.00017797,2]
[322586300,1713086299602,150.0,0.00017797,2]
[322586301,1713086299622,150.0,0.00017797,2]
[322586302,1713086299643,150.0,0.00017797,2]
[322586303,1713086299663,150.0,0.00017797,2]
[322586304,1713086299684,44.92,0.00017797,2]
[322586305,1713086394051,150.0,0.00015763,2]
[322586306,1713086399021,-600.0,0.00019174,2]
[322586307,1713086654000,-600.0,0.00019065,2]
[322586308,1713086789352,-296.28666493,0.00019061,2]
[322586309,1713086789380,-303.71333507,0.00019061,2]
[322586310,1713086822827,1000.0,0.00036488,120]
[322586311,1713086838302,932.75,0.00017627,2]
[322586312,1713086910140,1000.0,0.00036488,120]
[322586313,1713086951438,2867.59734889,0.00019063,5]
[322586314,1713086951462,7512.40265111,0.00019063,5]
[322586317,1713087032080,-419.22939929,0.00019062,2]
[322586318,1713087032090,-163.11241259,0.00019067,2]
[322586319,1713087032101,-1606.93675085,0.00019193,2]
[322586320,1713087032111,-324.40451491,0.00019412,2]
[322586321,1713087032195,-362.58548509,0.00019412,2]
[322586322,1713087032205,-356.21,0.00019438,2]
[322586323,1713087032215,-200.0,0.00019448,2]
[322586324,1713087032226,-500.0,0.00019524,2]
[322586325,1713087032235,-250.0,0.0001955,2]
[322586326,1713087032246,-189.95,0.00019551,2]
[322586327,1713087032255,-150.0,0.00019552,2]
[322586328,1713087032266,-150.0,0.00019553,2]
[322586329,1713087032277,-395.94,0.00019553,2]
[322586330,1713087032287,-999.99,0.00019553,2]
[322586331,1713087032297,-200.0,0.0001956,2]
[322586332,1713087032307,-150.99,0.0001956,2]
[322586333,1713087032317,-500.0,0.00019563,2]
[322586334,1713087032327,-200.0,0.00019655,2]
[322586335,1713087032337,-609.29967965,0.00019655,2]
[322586336,1713087032350,-397.56791311,0.00019655,2]
[322586337,1713087032421,-1048.93453551,0.00019655,2]
[322586338,1713087032435,-300.6296171,0.00019655,2]
[322586339,1713087032447,-502.38963629,0.00019655,2]
[322586340,1713087032540,-923.58946258,0.00019655,2]
[322586412,1713087038127,-2356.92753375,0.00019061,2]
[322586413,1713087038137,-2951.81915576,0.00019655,2]
[322586414,1713087038149,-150.99,0.00019655,2]
[322586415,1713087038159,-499.99,0.00019655,2]
[322586416,1713087038169,-1291.83305317,0.00019853,2]
[322586417,1713087038180,-185.31,0.0001988,2]
[322586418,1713087038190,-932.75,0.00019891,2]
[322586419,1713087038200,-181.23,0.00019898,2]
[322586420,1713087038210,-3655.467,0.0002006,2]
[322586421,1713087038220,-1000.0,0.00020093,2]
[322586422,1713087038229,-565.09,0.00020093,2]
[322586423,1713087038239,-167.0,0.00020254,2]
[322586424,1713087038249,-2867.91542878,0.00020531,2]
[322586425,1713087038259,-2867.91542878,0.0002077,2]
[322586426,1713087038270,-425.7338,0.000208,2]
[322586427,1713087038279,-2500.0,0.000208,2]
[322586428,1713087038289,-302.87341025,0.000208,2]
[322586429,1713087038299,-2464.57692782,0.000208,2]
[322586430,1713087038309,-302.87341019,0.00020811,2]
[322586431,1713087038319,-2464.57692782,0.00020814,2]
[322586432,1713087038328,-302.87341019,0.00020822,2]
[322586433,1713087038338,-2464.57692782,0.00020829,2]
[322586434,1713087038347,-302.87341019,0.00020833,2]
[322586435,1713087038357,-2464.57692782,0.00020843,2]
[322586436,1713087038367,-302.87341019,0.00020844,2]
[322586437,1713087038377,-302.87341019,0.00020856,2]
[322586438,1713087038386,-2464.57692782,0.00020857,2]
[322586439,1713087038398,-302.87341019,0.00020867,2]
[322586440,1713087038408,-2464.57692782,0.00020871,2]
[322586441,1713087038417,-302.87341019,0.00020878,2]
[322586442,1713087038426,-302.87341019,0.00020889,2]
[322586443,1713087038436,-865.55,0.0002089,3]
[322586444,1713087038446,-1313.73024675,0.00020891,2]
[322586445,1713087038455,-390.96287311,0.00020898,2]
[322586446,1713087038464,-392.85922919,0.00020898,2]
[322586447,1713087038474,-206.42056289,0.00020898,2]
[322586448,1713087038483,-155.0,0.00020898,2]
[322586449,1713087038492,-163.11241259,0.00020898,2]
[322586450,1713087038501,-536.91468218,0.00020898,2]
[322586451,1713087038511,-295.72178158,0.00020898,2]
[322586452,1713087038520,-366.38691564,0.00020898,2]
[322586453,1713087038530,-222.99784769,0.00020898,2]
[322586454,1713087038539,-315.50881748,0.00020898,2]
[322586455,1713087038548,-3675.3292,0.00020899,2]
[322586456,1713087038557,-1313.73024675,0.000209,2]
[322586457,1713087038567,-10000.0,0.000209,2]
[322586458,1713087038576,-131056.68530263,0.000209,2]
[322586463,1713087040814,-113943.31469737,0.000209,2]
[322586464,1713087040825,-330.50361158,0.000209,2]
[322586465,1713087040834,-1000.0,0.000209,2]
[322586466,1713087040843,-306.84918424,0.000209,2]
[322586467,1713087040853,-2030.69966094,0.000209,2]
[322586468,1713087040861,-2030.69966076,0.000209,2]
[322586469,1713087040871,-2030.69966076,0.000209,2]
[322586470,1713087040880,-2030.69966076,0.000209,2]
[322586471,1713087040889,-2030.69966076,0.000209,2]
[322586472,1713087040899,-2030.69966076,0.000209,2]
[322586473,1713087040908,-2030.69966076,0.000209,2]
[322586474,1713087040918,-2030.69966076,0.000209,2]
[322586475,1713087040927,-2030.69966076,0.000209,2]
[322586476,1713087040936,-2030.69966076,0.000209,2]
[322586477,1713087040946,-2030.69966076,0.000209,2]
[322586478,1713087040955,-2030.69966076,0.000209,2]
[322586479,1713087040965,-2030.69966076,0.000209,2]
[322586480,1713087040974,-2030.69966076,0.000209,2]
[322586481,1713087040983,-2030.69966076,0.000209,2]
[322586482,1713087040993,-2030.69966076,0.000209,2]
[322586483,1713087041002,-2030.69966076,0.000209,2]
[322586484,1713087041011,-2030.69966076,0.000209,2]
[322586485,1713087041020,-2030.69966076,0.000209,2]
[322586486,1713087041030,-2030.69966076,0.000209,2]
[322586487,1713087041040,-386.73229254,0.000209,2]
[322586488,1713087041051,-7180.78777759,0.000209,3]
[322586489,1713087041061,-187.52025476,0.000209,2]
[322586490,1713087041070,-1006.08156831,0.000209,2]
[322586491,1713087041079,-302.87341019,0.000209,2]
[322586492,1713087041089,-315.50881747,0.000209,2]
[322586493,1713087041098,-375.38911058,0.000209,2]
[322586494,1713087041108,-185.31,0.00020984,2]
[322586495,1713087041118,-202.59043853,0.00020988,2]
[322586496,1713087041127,-946.24375437,0.00020996,2]
[322586497,1713087041137,-155.58493034,0.00020996,2]
[322586498,1713087041148,-215.69452814,0.00020996,2]
[322586499,1713087041159,-690.38146521,0.00020996,2]
[322586500,1713087041170,-525.82699561,0.00020997,2]
[322586501,1713087041180,-782.7566959,0.00020998,2]
[322586502,1713087041190,-3823.23736361,0.00020998,2]
[322586503,1713087041200,-178.63784477,0.00020998,2]
[322586504,1713087041210,-548.15751275,0.00020998,2]
[322586505,1713087041220,-1043.45635974,0.00020998,2]
[322586506,1713087041231,-1393.58447437,0.00020998,2]
[322586507,1713087041241,-156.04790979,0.00020998,2]
[322586508,1713087041250,-411.33971946,0.00020998,2]
[322586509,1713087041260,-302.526915,0.00020998,2]
[322586510,1713087041269,-192.79623149,0.00020998,2]
[322586511,1713087041278,-155.0,0.00020998,2]
[322586512,1713087041287,-292.03235142,0.00020998,2]
[322586513,1713087041297,-8615.89479567,0.00020998,2]
[322586514,1713087041306,-3075.97770024,0.00020998,2]
[322586515,1713087041316,-1058.36793939,0.00020998,2]
[322586516,1713087041326,-215.43117381,0.00020998,2]
[322586517,1713087041336,-155.0,0.00020998,2]
[322586518,1713087041345,-155.29437304,0.00020998,2]
[322586519,1713087041355,-550.51311595,0.00020998,2]
[322586520,1713087041365,-648.2666,0.00020998,2]
[322586521,1713087041375,-956.52484441,0.00020998,2]
[322586522,1713087041385,-345847.86723741,0.00020998,2]
[322586523,1713087041398,-185.78135859,0.00020998,2]
[322586524,1713087041410,-310.8781278,0.00020998,2]
[322586525,1713087041419,-164.17733306,0.00020998,2]
[322586526,1713087041429,-1484.38795616,0.00020998,2]
[322586527,1713087041438,-155.0,0.00020998,2]
[322586528,1713087041447,-596.40332604,0.00020998,2]
[322586529,1713087041457,-407.61661465,0.00020998,2]
[322586530,1713087041467,-513.16357943,0.00020998,2]
[322586531,1713087041477,-158.07811083,0.00020998,3]
[322586532,1713087041488,-406.5644351,0.00020999,2]
[322586533,1713087041499,-213083.47601042,0.00020999,2]
[322586534,1713087041509,-3339.31430567,0.00020999,2]
[322586535,1713087041519,-5000.0,0.00020999,5]
[322586536,1713087041529,-201.38728826,0.00020999,2]
[322586537,1713087041538,-10900130.79248186,0.00021,2]
[322586538,1713087041550,-14438022.6587518,0.00021,2]
[322586539,1713087041562,-269840.67253395,0.00021,2]
[322586540,1713087041972,-2464.57692782,0.00020886,2]
[322586541,1713087041982,-3160.0915974,0.00021,2]
[322586542,1713087042049,-2532.9872,0.00021,2]
[322586543,1713087042088,-17793.43869762,0.00021,2]
[322586544,1713087042118,-986.82,0.00021,2]
[322586545,1713087042130,-2577.44,0.00021,2]
[322586546,1713087042141,-253.44497898,0.00021,2]
[322586553,1713087043445,-9133.03911666,0.00021,2]
[322586554,1713087043468,-2595.58041615,0.00021,2]
[322586555,1713087043480,-11165.85331212,0.00021,2]
[322586556,1713087043504,-957.25129297,0.00021,2]
[322586557,1713087043515,-39912.25572739,0.00021,2]
[322586558,1713087043527,-1426.58,0.00021,2]
[322586565,1713087044007,-297.20259579,0.00021,2]
[322586567,1713087046324,-2109.28955006,0.000209,2]
[322586568,1713087046335,-355.28737776,0.000209,2]
[322586569,1713087046345,-936.99382229,0.00021,2]
[322586570,1713087046499,-42854.28686146,0.00021,2]
[322586571,1713087046520,-522.10336086,0.00021,2]
[322586572,1713087414559,959.3,0.00017162,2]
[322586573,1713087454383,444.15264257,0.00020795,60]
[322586574,1713087460981,552.99543479,0.0001373,2]
[322586575,1713087470016,444.15264257,0.00020795,60]
[322586576,1713087486235,455.09820412,0.00020795,60]
[322586577,1713087543091,150.5,0.0002099,15]
[322586578,1713087543130,150.5,0.0002099,15]
[322586579,1713087543265,153.25,0.0002099,15]
[322586580,1713087543435,150.5,0.0002099,15]
[322586581,1713087543606,169.49,0.0002098,15]
[322586582,1713087543639,187.15,0.0002098,15]
[322586583,1713087543724,151.74,0.0002099,15]
[322586584,1713087543809,5147.0,0.0002099,15]
[322586585,1713087543905,150.5,0.0002098,15]
[322586586,1713087544272,5147.0,0.0002098,15]
[322586587,1713087544396,206.52,0.0002097,15]
[322586588,1713087544729,5147.0,0.0002097,15]
[322586589,1713087544821,669.0,0.0002099,15]
[322586590,1713087545300,669.0,0.0002098,15]
[322586591,1713087545574,280.0,0.0002099,15]
[322586592,1713087545774,669.0,0.0002097,15]
[322586593,1713087546048,280.0,0.0002098,15]
[322586594,1713087546512,280.0,0.0002097,15]
[322586595,1713087660455,1300.22,0.00019039,6]
[322586596,1713087663019,3874.0,0.0002099,15]
[322586597,1713087663263,329.0,0.0002099,15]
[322586598,1713087663458,3874.0,0.0002098,15]
[322586599,1713087663787,329.0,0.0002098,15]
[322586600,1713087664458,3874.0,0.0002097,15]
[322586601,1713087664505,329.0,0.0002097,15]
[322586602,1713087664637,3603.0,0.0002099,15]
[322586603,1713087665301,3603.0,0.0002098,15]
[322586604,1713087665824,3603.0,0.0002097,15]
[322586605,1713087784595,2522.0,0.0002099,15]
[322586606,1713087785449,2522.0,0.0002098,15]
[322586607,1713087786067,1779.85,0.0002097,15]
[322586608,1713087786095,742.15,0.0002097,15]
[322586610,1713087904483,230.0,0.0002099,15]
[322586611,1713087905022,230.0,0.0002098,15]
[322586612,1713087905276,1765.0,0.0002099,15]
[322586613,1713087905679,230.0,0.0002097,15]
[322586614,1713087906079,1765.0,0.0002098,15]
[322586615,1713087906686,1765.0,0.0002097,15]
[322586616,1713087978890,750.19675425,0.00016934,2]
[322586617,1713087978918,161.13324575,0.00016934,2]
[322586618,1713088024664,2712.0,0.0002099,15]
[322586619,1713088025239,2712.0,0.0002098,15]
[322586620,1713088025648,2712.0,0.0002097,15]
[322586621,1713088026140,1236.0,0.0002099,15]
[322586622,1713088026833,1236.0,0.0002098,15]
[322586623,1713088027921,1236.0,0.0002097,15]
[322586624,1713088086953,-200.04259109,0.00018803,2]
[322586625,1713088086973,-164.29423485,0.00018803,2]
[322586626,1713088086993,-155.0,0.00018804,2]
[322586627,1713088087014,-155.0,0.00018804,2]
[322586628,1713088087036,-150.0,0.00018804,2]
[322586629,1713088087057,-150.0,0.00018804,2]
[322586630,1713088087078,-155.0,0.00018805,2]
[322586631,1713088087101,-155.0,0.00018805,2]
[322586632,1713088087122,-1715.66317406,0.00018805,2]
[322586633,1713088087782,-2861.81016701,0.00018805,2]
[322586634,1713088087805,-138.18983299,0.00018806,2]
[322586635,1713088088243,-16.81016701,0.00018806,2]
[322586636,1713088088265,-1059.36088493,0.00018806,2]
[322586637,1713088088287,-155.0,0.00018807,2]
[322586638,1713088088309,-780.34286168,0.00018807,2]
[322586639,1713088088329,-988.48608638,0.00018807,2]
[322586640,1713088088685,-2089.72459723,0.00018807,2]
[322586641,1713088088707,-683.27995213,0.00018808,2]
[322586642,1713088088728,-226.99545064,0.00018816,2]
[322586643,1713088089129,-2356.92753375,0.00018802,2]
[322586644,1713088089149,-557.39670812,0.00018816,2]
[322586645,1713088089169,-85.67575813,0.00018818,2]
[322586646,1713088089524,-450.9313614,0.00018818,2]
[322586647,1713088089545,-500.0,0.00018821,2]
[322586648,1713088089565,-2049.0686386,0.00018821,2]
[322586649,1713088089949,-3000.0,0.00018821,2]
[322586650,1713088090447,-3000.0,0.00018821,2]
[322586651,1713088090972,-2760.2613614,0.00018821,2]
[322586652,1713088090993,-239.7386386,0.00018835,2]
[322586653,1713088091509,-89.5513614,0.00018835,2]
[322586654,1713088091530,-457.32,0.00018844,2]
[322586655,1713088091550,-200.0,0.00018851,2]
[322586656,1713088091571,-178.1,0.00018876,2]
[322586657,1713088091591,-2075.0286386,0.000189,2]
[322586658,1713088092036,-3000.0,0.000189,2]
[322586659,1713088092721,-902.24962675,0.000189,2]
[322586660,1713088092743,-150.0,0.00018976,2]
[322586661,1713088092765,-166.78,0.00018982,2]
[322586662,1713088092787,-758.36870775,0.00019034,2]
[322586663,1713088092807,-250.0,0.00019038,2]
[322586664,1713088144621,161.0,0.0002099,15]
[322586665,1713088145273,161.0,0.0002098,15]
[322586666,1713088145526,865.0,0.0002099,15]
[322586667,1713088145797,161.0,0.0002097,15]
[322586668,1713088145989,865.0,0.0002098,15]
[322586669,1713088146465,865.0,0.0002097,15]
[322586670,1713088164913,-1475.4601853,0.00019039,2]
[322586672,1713088190495,772.6016655,0.00019,2]
[322586673,1713088190518,1418.26472703,0.00019,2]
[322586674,1713088220458,1059.36088493,0.00019037,2]
[322586675,1713088227198,161.29586727,0.00019037,2]
[322586676,1713088231967,361.07852077,0.00019037,2]
[322586677,1713088231989,1995.84901298,0.00019037,2]
[322586700,1713088232276,-3754.55085051,0.00019038,2]
[322586703,1713088232287,-705.57830306,0.00019039,2]
[322586706,1713088232297,-150.99,0.00019041,2]
[322586709,1713088232308,-1000.0,0.00019072,2]
[322586712,1713088232317,-200.0,0.00019082,2]
[322586714,1713088232326,-152.27,0.00019082,2]
[322586717,1713088232335,-500.0,0.00019096,2]
[322586720,1713088232344,-250.0,0.00019097,2]
[322586723,1713088232353,-150.0,0.00019114,2]
[322586726,1713088232362,-499.99,0.00019119,2]
[322586728,1713088232372,-80.99375991,0.00019148,2]
[322586734,1713088232418,-4331.02072546,0.00019148,2]
[322586736,1713088232429,-5587.97551463,0.00019148,2]
[322586738,1713088232438,-7137.15,0.00019148,2]
[322586740,1713088232448,-2508.15,0.00019148,2]
[322586741,1713088232457,-150.99,0.00019148,2]
[322586743,1713088232467,-152.27,0.00019148,2]
[322586744,1713088232476,-1317.44,0.00019178,2]
[322586746,1713088232486,-8017.33,0.00019178,2]
[322586747,1713088232495,-911.33,0.00019198,2]
[322586749,1713088232505,-152.27,0.00019215,2]
[322586751,1713088232514,-152.27,0.00019281,2]
[322586753,1713088232524,-152.27,0.00019347,2]
[322586755,1713088232533,-152.27,0.00019413,2]
[322586757,1713088232542,-152.27,0.0001948,2]
[322586759,1713088232552,-155.0,0.00019544,2]
[322586760,1713088232563,-780.34286168,0.00019544,2]
[322586762,1713088232572,-152.27,0.00019546,2]
[322586764,1713088232581,-168.61,0.000196,2]
[322586765,1713088232591,-152.27,0.00019612,2]
[322586766,1713088232600,-152.27,0.00019679,2]
[322586767,1713088232609,-152.27,0.00019745,2]
[322586768,1713088232619,-152.27,0.00019811,2]
[322586769,1713088232628,-152.27,0.00019878,2]
[322586770,1713088232638,-152.27,0.00019944,2]
[322586771,1713088232648,-1290.91415367,0.00019949,2]
[322586772,1713088232658,-152.27,0.0002001,2]
[322586773,1713088232667,-166.78,0.00020036,2]
[322586774,1713088232677,-453.14,0.00020059,2]
[322586775,1713088232686,-453.14,0.00020065,2]
[322586776,1713088232695,-453.14,0.0002007,2]
[322586777,1713088232705,-453.14,0.00020075,2]
[322586778,1713088232715,-152.27,0.00020076,2]
[322586779,1713088232724,-453.14,0.0002008,2]
[322586780,1713088232734,-453.14,0.00020086,2]
[322586781,1713088232743,-453.14,0.00020091,2]
[322586782,1713088232753,-453.14,0.00020096,2]
[322586783,1713088232763,-453.14,0.00020102,2]
[322586785,1713088232773,-453.14,0.00020107,2]
[322586787,1713088232783,-453.14,0.00020112,2]
[322586789,1713088232792,-453.14,0.00020117,2]
[322586791,1713088232802,-453.14,0.00020123,2]
[322586793,1713088232813,-453.14,0.00020128,2]
[322586794,1713088232822,-453.14,0.00020133,2]
[322586795,1713088232832,-453.14,0.00020139,2]
[322586796,1713088232842,-453.14,0.00020144,2]
[322586797,1713088232852,-453.14,0.00020149,2]
[322586798,1713088232862,-453.14,0.00020155,2]
[322586800,1713088232871,-453.14,0.0002016,2]
[322586802,1713088232881,-2500.0,0.000204,2]
[322586803,1713088232893,-1160.5709,0.00020697,2]
[322586805,1713088232903,-2874.2188,0.00020697,2]
[322586807,1713088232913,-2995.5386,0.00020697,2]
[322586808,1713088232923,-13658.80312074,0.00020697,2]
[322586816,1713088233283,-903.55095595,0.00020697,2]
[322586817,1713088233298,-608.0,0.00020697,2]
[322586818,1713088233314,-1545.49398965,0.00020697,2]
[322586819,1713088233326,-1771.536,0.00020697,2]
[322586820,1713088233337,-13702.44513366,0.00020697,2]
[322586821,1713088233347,-1930.0802332,0.00020698,2]
[322586822,1713088233357,-180.24386847,0.00020698,2]
[322586823,1713088233367,-179.19147415,0.00020698,2]
[322586824,1713088233376,-315.50881747,0.00020699,2]
[322586825,1713088233386,-1408.20401869,0.000207,3]
[322586826,1713088233395,-1930.08023312,0.0002072,2]
[322586827,1713088233404,-153.42459212,0.00020732,2]
[322586828,1713088233414,-1930.08023312,0.00020743,2]
[322586829,1713088233424,-179.19147412,0.00020749,2]
[322586830,1713088233433,-1930.08023312,0.00020765,2]
[322586831,1713088233442,-1267.55277145,0.00020776,2]
[322586832,1713088233452,-1930.08023312,0.00020788,2]
[322586833,1713088233461,-202.59043853,0.00020788,2]
[322586834,1713088233470,-236.43311706,0.00020795,2]
[322586835,1713088233479,-206.50643448,0.00020795,2]
[322586836,1713088233489,-155.0,0.00020795,2]
[322586837,1713088233498,-155.0,0.00020795,2]
[322586838,1713088233507,-155.0,0.00020795,2]
[322586839,1713088233517,-155.0,0.00020795,2]
[322586840,1713088233526,-257.83754039,0.00020795,2]
[322586841,1713088233536,-296.28666493,0.00020795,2]
[322586842,1713088233546,-155.0,0.00020795,2]
[322586843,1713088233556,-333.50558666,0.00020795,2]
[322586844,1713088233566,-194.0760332,0.00020795,2]
[322586845,1713088233576,-199.96787162,0.00020795,2]
[322586846,1713088233585,-155.29437304,0.00020795,2]
[322586847,1713088233595,-155.35145288,0.00020795,2]
[322586848,1713088233605,-155.0,0.00020795,2]
[322586849,1713088233614,-512.6459465,0.00020795,2]
[322586850,1713088233624,-164.17733306,0.00020795,2]
[322586851,1713088233634,-300.39967791,0.00020795,2]
[322586852,1713088233643,-155.0,0.00020795,2]
[322586853,1713088233653,-156.01511587,0.00020795,2]
[322586854,1713088233663,-262.89786445,0.00020795,2]
[322586855,1713088233673,-172.23837852,0.00020795,2]
[322586856,1713088233682,-340.11670054,0.00020795,2]
[322586857,1713088233692,-155.0,0.00020795,2]
[322586858,1713088233702,-811.95737089,0.00020795,2]
[322586859,1713088233711,-155.0,0.00020795,2]
[322586860,1713088233721,-192.79623149,0.00020796,2]
[322586861,1713088233730,-155.0,0.00020796,2]
[322586862,1713088233740,-1043.45635974,0.00020796,2]
[322586863,1713088233750,-156.04790979,0.00020797,2]
[322586864,1713088233759,-956.52484441,0.00020797,2]
[322586865,1713088233769,-946.24375437,0.00020797,2]
[322586866,1713088233779,-302.526915,0.00020797,2]
[322586867,1713088233789,-550.51311595,0.00020797,2]
[322586868,1713088233799,-178.63784477,0.00020797,2]
[322586869,1713088233810,-690.38146521,0.00020797,2]
[322586870,1713088233819,-548.15751275,0.00020797,2]
[322586871,1713088233829,-215.69452814,0.00020797,2]
[322586872,1713088233839,-3823.23736361,0.00020797,2]
[322586873,1713088233849,-8615.89479567,0.00020797,2]
[322586874,1713088233859,-1393.58447437,0.00020797,2]
[322586875,1713088233870,-648.2666,0.00020797,2]
[322586876,1713088233880,-525.82699561,0.00020797,2]
[322586877,1713088233890,-411.33971946,0.00020797,2]
[322586878,1713088233900,-215.43117381,0.00020797,2]
[322586879,1713088233910,-292.03235142,0.00020797,2]
[322586880,1713088233919,-152810.34263094,0.00020797,2]
[322586881,1713088233939,-1733.56127489,0.00020797,2]
[322586882,1713088234005,-852.40511334,0.00020797,2]
[322586883,1713088234016,-2090.95185054,0.00020797,2]
[322586884,1713088235019,155.0,0.00019037,2]
[322586885,1713088235566,155.0,0.00019037,2]
[322586904,1713088238519,-1057.70875064,0.00020796,2]
[322586905,1713088238529,-56233.25668071,0.00020797,2]
[322586906,1713088238538,-614.05609417,0.00020797,2]
[322586907,1713088238548,-407.61661465,0.00020798,2]
[322586908,1713088238557,-158.07811083,0.00020798,3]
[322586909,1713088238566,-310.8781278,0.00020798,2]
[322586910,1713088238576,-406.5644351,0.00020798,2]
[322586911,1713088238585,-185.78135859,0.00020798,2]
[322586912,1713088238595,-345847.86723741,0.00020798,2]
[322586913,1713088238604,-1484.38795616,0.00020799,2]
[322586914,1713088238615,-179.19147412,0.00020799,2]
[322586915,1713088238624,-245000.0,0.000208,2]
[322586916,1713088238634,-34011.7713,0.000208,2]
[322586917,1713088238644,-165.25180579,0.000208,2]
[322586918,1713088238654,-7500.0,0.000208,2]
[322586919,1713088238664,-1930.08023312,0.0002081,2]
[322586920,1713088238673,-1000.0,0.00020832,2]
[322586921,1713088238682,-500.0,0.00020832,2]
[322586922,1713088238692,-1930.08023312,0.00020833,2]
[322586923,1713088238701,-179.19147412,0.0002085,2]
[322586924,1713088238711,-1930.08023312,0.00020855,2]
[322586925,1713088238720,-1930.08023312,0.00020878,2]
[322586926,1713088238730,-155.0,0.00020899,2]
[322586927,1713088238739,-6440.72313723,0.000209,2]
[322586928,1713088238749,-4181.6806,0.000209,2]
[322586929,1713088238758,-4409.5616,0.000209,2]
[322586930,1713088238767,-1000.0,0.000209,2]
[322586931,1713088238776,-10000.0,0.000209,2]
[322586932,1713088238786,-111323.98498079,0.000209,3]
[322586933,1713088238795,-165.25180579,0.000209,2]
[322586934,1713088238805,-1930.08023312,0.000209,2]
[322586935,1713088238817,-386.73229254,0.000209,2]
[322586936,1713088238826,-180.24386846,0.000209,2]
[322586937,1713088238835,-1006.08156831,0.000209,2]
[322586938,1713088238844,-420.59483582,0.000209,2]
[322586939,1713088238853,-179.19147412,0.000209,2]
[322586940,1713088238863,-2051.92006107,0.000209,2]
[322586941,1713088238873,-7180.78777759,0.000209,3]
[322586942,1713088238882,-2051.92006099,0.000209,2]
[322586943,1713088238891,-2051.92006099,0.000209,2]
[322586944,1713088238900,-2051.92006099,0.000209,2]
[322586945,1713088238909,-3624.0,0.00020986,2]
[322586946,1713088238918,-19874.0,0.00020986,2]
[322586947,1713088238927,-7311.0,0.00020986,2]
[322586948,1713088238937,-6703.089644,0.00020994,2]
[322586949,1713088238946,-266.79799477,0.00020998,2]
[322586950,1713088238955,-155.0,0.00020998,2]
[322586951,1713088238964,-304.59353416,0.00020998,2]
[322586952,1713088238974,-166.9536833,0.00020998,2]
[322586953,1713088238983,-155.87689716,0.00020998,2]
[322586954,1713088238992,-207.35689785,0.00020998,2]
[322586955,1713088239001,-1545.49398965,0.00020998,2]